[Event "Slovakia Open Piestany-A 2022"]
[Site "Piestany"]
[Date "2022.07.13"]
[Round "3.8"]
[White "Haring, Filip"]
[Black "Turcan, Richard"]
[Result "1/2-1/2"]
[ECO "B77"]
[WhiteElo "2451"]
[BlackElo "2304"]
[Annotator "ChessBase"]
[PlyCount "60"]
[EventDate "2022.07.12"]
[EventType "swiss"]
[EventCountry "SVK"]
[SourceTitle "playchess.com"]
[Source "ChessBase"]
[SourceQuality "1"]
[TimeControl "40/5400+30:1800+30"]

1. e4 {[%emt 0:00:08]} c5 {[%emt 0:00:29]} 2. Nf3 {[%emt 0:00:08]} d6 {[%emt 0:00:31]} 3. d4 {[%emt 0:00:07]} cxd4 {[%emt 0:00:07]} 4. Nxd4 {[%emt 0:00:06]} Nf6 {[%emt 0:00:09]} 5. Nc3 {[%emt 0:00:05]} g6 {[%emt 0:00:51]} 6. Be3 {[%emt 0:00:11]} Bg7 {[%emt 0:00:05]} 7. f3 {[%emt 0:00:07]} O-O {[%emt 0:00:09]} 8. Qd2 {[%emt 0:00:05]} Nc6 {[%emt 0:00:05]} 9. Bc4 {[%emt 0:00:07]} Bd7 {[%emt 0:00:06]} 10. Bb3 {[%emt 0:00:15]} Na5 {[%emt 0:05:25]} 11. O-O-O {[%emt 0:01:36]} Rb8 {[%emt 0:00:47]} 12. Kb1 {[%emt 0:14:57]} b5 {[%emt 0:01:31]} 13. Bh6 {[%emt 0:00:51]} Nc4 {[%emt 0:03:21]} 14. Qc1 {[%emt 0:20:26]} Bxh6 {[%emt 0:02:40]} 15. Qxh6 {[%emt 0:00:08]} a5 {[%emt 0:35:17]} 16. h4 {[%emt 0:11:44]} a4 {[%emt 0:02:10]} 17. Bxc4 {[%emt 0:12:31]} bxc4 {[%emt 0:00:12]} 18. a3 {[%emt 0:00:06]} Qb6 {[%emt 0:02:43]} 19. Qc1 {[%emt 0:02:11]} Rb7 {[%emt 0:00:59]} 20. Ka1 {[%emt 0:12:56]} Rfb8 {[%emt 0:02:33]} 21. Na2 {[%emt 0:06:19]} Qc5 {[%emt 0:10:58]} 22. Rd2 {[%emt 0:11:57]} Rxb2 {[%emt 0:08:11]} 23. Qxb2 {[%emt 0:00:10]} Rxb2 {[%emt 0:00:04]} 24. Kxb2 {[%emt 0:00:10]} e5 {[%emt 0:00:20]} 25. Ne2 {[%emt 0:00:18]} d5 {[%emt 0:00:44]} 26. exd5 {[%emt 0:00:28]} Nxd5 {[%emt 0:00:18]} 27. Rhd1 {[%emt 0:03:04]} Be6 {[%emt 0:00:37]} 28. Nec3 {[%emt 0:01:05]} Qb6+ {[%emt 0:04:21]} 29. Kc1 {[%emt 0:00:25]} Nxc3 {[%emt 0:02:51]} 30. Nxc3 {[%emt 0:00:05]} Qe3 {[%emt 0:01:37]} 1/2-1/2

[Event "Slovakia Open Piestany-A 2022"]
[Site "Piestany"]
[Date "2022.07.13"]
[Round "3.9"]
[White "Piesik, Piotr"]
[Black "Bochnicka, Vladimir"]
[Result "1-0"]
[ECO "B30"]
[WhiteElo "2440"]
[BlackElo "2295"]
[Annotator "ChessBase"]
[PlyCount "67"]
[EventDate "2022.07.12"]
[EventType "swiss"]
[EventCountry "SVK"]
[SourceTitle "playchess.com"]
[Source "ChessBase"]
[SourceQuality "1"]
[TimeControl "40/5400+30:1800+30"]

1. Nf3 {[%emt 0:00:10]} c5 {[%emt 0:00:06]} 2. e4 {[%emt 0:00:25]} Nc6 {[%emt 0:00:06]} 3. Bb5 {[%emt 0:00:05]} Nf6 {[%emt 0:00:13]} 4. Nc3 {[%emt 0:00:50]} g6 {[%emt 0:00:15]} 5. h3 {[%emt 0:02:33]} Bg7 {[%emt 0:01:46]} 6. e5 {[%emt 0:06:51]} Ng8 {[%emt 0:02:14]} 7. O-O {[%emt 0:02:26]} Nxe5 {[%emt 0:09:00]} 8. Nxe5 {[%emt 0:00:27]} Bxe5 {[%emt 0:00:05]} 9. Re1 {[%emt 0:00:06]} Bg7 {[%emt 0:07:11]} 10. d4 {[%emt 0:01:31]} cxd4 {[%emt 0:11:42]} 11. Nd5 {[%emt 0:00:07]} a6 {[%emt 0:13:39]} 12. Bf4 {[%emt 0:01:52]} e6 {[%emt 0:13:26]} 13. Nc7+ {[%emt 0:02:30]} Ke7 {[%emt 0:03:04]} 14. Nd5+ {[%emt 0:00:35]} Ke8 {[%emt 0:00:05]} 15. Bd6 {[%emt 0:10:40]} Qg5 {[%emt 0:00:06]} 16. Qf3 {[%emt 0:14:27]} f5 {[%emt 0:08:23]} 17. Bc4 {[%emt 0:03:10]} Kf7 {[%emt 0:03:08]} 18. Nb6 {[%emt 0:00:19]} Nf6 {[%emt 0:04:54]} 19. Bf4 {[%emt 0:05:10]} Qh5 {[%emt 0:04:02]} 20. Qb3 {[%emt 0:02:16]} g5 {[%emt 0:03:26]} 21. Be5 {[%emt 0:03:13]} d5 {[%emt 0:00:43]} 22. Be2 {[%emt 0:02:10]} g4 {[%emt 0:02:07]} 23. Nxa8 {[%emt 0:01:53]} b5 {[%emt 0:07:06]} 24. Bxd4 {[%emt 0:01:59]} Bb7 {[%emt 0:01:30]} 25. Nc7 {[%emt 0:00:20]} Ne4 {[%emt 0:01:40]} 26. Bxg7 {[%emt 0:00:16]} Rg8 {[%emt 0:00:08]} 27. Nxe6 {[%emt 0:03:06]} Qg6 {[%emt 0:02:30]} 28. Nf4 {[%emt 0:01:36]} Qd6 {[%emt 0:00:04]} 29. Nh5 {[%emt 0:02:50]} Qg6 {[%emt 0:00:54]} 30. hxg4 {[%emt 0:01:19]} fxg4 {[%emt 0:01:03]} 31. Bd3 {[%emt 0:00:55]} Qxh5 {[%emt 0:00:28]} 32. Rxe4 {[%emt 0:00:26]} Rxg7 {[%emt 0:00:28]} 33. Rae1 {[%emt 0:00:27]} Kf8 {[%emt 0:00:11]} 34. Qb4+ {[%emt 0:00:41]} 1-0

[Event "Slovakia Open Piestany-A 2022"]
[Site "Piestany"]
[Date "2022.07.13"]
[Round "3.10"]
[White "Niedbala, Bartlomiej"]
[Black "Moksh Amit Doshi"]
[Result "1-0"]
[ECO "C88"]
[WhiteElo "2381"]
[BlackElo "2409"]
[Annotator "ChessBase"]
[PlyCount "75"]
[EventDate "2022.07.12"]
[EventType "swiss"]
[EventCountry "SVK"]
[SourceTitle "playchess.com"]
[Source "ChessBase"]
[SourceQuality "1"]
[TimeControl "40/5400+30:1800+30"]

1. e4 {[%emt 0:05:59]} e5 {[%emt 0:00:40]} 2. Nf3 {[%emt 0:01:46]} Nc6 {[%emt 0:00:30]} 3. Bb5 {[%emt 0:00:18]} a6 {[%emt 0:00:09]} 4. Ba4 {[%emt 0:00:02]} Nf6 {[%emt 0:00:09]} 5. O-O {[%emt 0:00:04]} Be7 {[%emt 0:00:09]} 6. Re1 {[%emt 0:00:04]} b5 {[%emt 0:00:06]} 7. Bb3 {[%emt 0:00:03]} O-O {[%emt 0:00:11]} 8. a4 {[%emt 0:00:02]} Bb7 {[%emt 0:00:12]} 9. d3 {[%emt 0:00:06]} d6 {[%emt 0:00:09]} 10. Bd2 {[%emt 0:00:04]} Qd7 {[%emt 0:04:07]} 11. Nc3 {[%emt 0:02:41]} Na5 {[%emt 0:00:12]} 12. Ba2 {[%emt 0:00:08]} b4 {[%emt 0:00:27]} 13. Ne2 {[%emt 0:00:09]} c5 {[%emt 0:00:05]} 14. Ng3 {[%emt 0:00:34]} Rab8 {[%emt 0:00:05]} 15. Nh4 {[%emt 0:02:55]} g6 {[%emt 0:02:03]} 16. Bh6 {[%emt 0:05:09]} Rfe8 {[%emt 0:00:18]} 17. Nhf5 {[%emt 0:03:01]} Bd8 {[%emt 0:00:23]} 18. Ng7 {[%emt 0:07:39]} Rf8 {[%emt 0:00:07]} 19. N7f5 {[%emt 0:01:34]} Re8 {[%emt 0:00:07]} 20. Ng7 {[%emt 0:00:58]} Rf8 {[%emt 0:00:18]} 21. h3 {[%emt 0:00:20]} b3 {[%emt 0:01:49]} 22. cxb3 {[%emt 0:02:06]} Nc6 {[%emt 0:08:31]} 23. Qc1 {[%emt 0:10:45]} Ba5 {[%emt 0:19:34]} 24. N7h5 {[%emt 0:26:26]} Nxh5 {[%emt 0:00:53]} 25. Nxh5 {[%emt 0:01:56]} Qe7 {[%emt 0:00:46]} 26. Bg5 {[%emt 0:02:32]} f6 {[%emt 0:01:11]} 27. Nxf6+ {[%emt 0:03:31]} Kh8 {[%emt 0:01:06]} 28. Ng4 {[%emt 0:02:51]} Qd7 {[%emt 0:02:58]} 29. Rf1 {[%emt 0:04:19]} Nd4 {[%emt 0:01:43]} 30. Kh1 {[%emt 0:02:12]} Bd8 {[%emt 0:02:41]} 31. Bh6 {[%emt 0:00:34]} Re8 {[%emt 0:00:07]} 32. f4 {[%emt 0:06:20]} Ne2 {[%emt 0:04:44]} 33. Qe1 {[%emt 0:00:11]} Nxf4 {[%emt 0:00:13]} 34. Rxf4 {[%emt 0:00:06]} exf4 {[%emt 0:00:15]} 35. Qc3+ {[%emt 0:00:02]} Kg8 {[%emt 0:00:29]} 36. b4+ {[%emt 0:00:03]} d5 {[%emt 0:00:12]} 37. exd5 {[%emt 0:00:29]} cxb4 {[%emt 0:00:55]} 38. d6+ {[%emt 0:00:12]} 1-0

[Event "Slovakia Open Piestany-A 2022"]
[Site "Piestany"]
[Date "2022.07.13"]
[Round "3.12"]
[White "Krasenkow, Michal"]
[Black "Sharma Isha"]
[Result "0-1"]
[ECO "E92"]
[WhiteElo "2569"]
[BlackElo "2236"]
[Annotator "ChessBase"]
[PlyCount "74"]
[EventDate "2022.07.12"]
[EventType "swiss"]
[EventCountry "SVK"]
[SourceTitle "playchess.com"]
[Source "ChessBase"]
[SourceQuality "1"]
[TimeControl "40/5400+30:1800+30"]

1. Nf3 {[%emt 0:00:06]} Nf6 {[%emt 0:00:05]} 2. c4 {[%emt 0:00:05]} g6 {[%emt 0:00:15]} 3. Nc3 {[%emt 0:00:06]} Bg7 {[%emt 0:00:05]} 4. e4 {[%emt 0:00:05]} d6 {[%emt 0:00:03]} 5. d4 {[%emt 0:00:05]} O-O {[%emt 0:00:05]} 6. Be2 {[%emt 0:00:03]} e5 {[%emt 0:00:04]} 7. d5 {[%emt 0:00:05]} a5 {[%emt 0:00:06]} 8. h3 {[%emt 0:00:10]} Na6 {[%emt 0:00:05]} 9. Bg5 {[%emt 0:00:05]} Qe8 {[%emt 0:01:57]} 10. g4 {[%emt 0:01:24]} Kh8 {[%emt 0:01:58]} 11. Be3 {[%emt 0:10:13]} Nxe4 {[%emt 0:27:49]} 12. Nxe4 {[%emt 0:00:24]} f5 {[%emt 0:00:04]} 13. Neg5 {[%emt 0:12:37]} h6 {[%emt 0:03:36]} 14. Ne6 {[%emt 0:00:46]} Bxe6 {[%emt 0:00:05]} 15. dxe6 {[%emt 0:00:05]} f4 {[%emt 0:00:11]} 16. Bc1 {[%emt 0:09:32]} Qxe6 {[%emt 0:03:02]} 17. Nd2 {[%emt 0:00:12]} e4 {[%emt 0:06:12]} 18. f3 {[%emt 0:00:08]} e3 {[%emt 0:06:19]} 19. Ne4 {[%emt 0:00:05]} Qe7 {[%emt 0:04:00]} 20. h4 {[%emt 0:01:09]} Rad8 {[%emt 0:05:13]} 21. h5 {[%emt 0:03:57]} c6 {[%emt 0:09:30]} 22. g5 {[%emt 0:02:20]} d5 {[%emt 0:05:39]} 23. cxd5 {[%emt 0:02:16]} cxd5 {[%emt 0:01:49]} 24. gxh6 {[%emt 0:02:04]} dxe4 {[%emt 0:01:12]} 25. hxg7+ {[%emt 0:01:19]} Kxg7 {[%emt 0:00:05]} 26. Qb3 {[%emt 0:02:16]} Qg5 {[%emt 0:02:18]} 27. Kf1 {[%emt 0:13:33]} Nc5 {[%emt 0:02:13]} 28. Qc3+ {[%emt 0:01:29]} Rf6 {[%emt 0:00:06]} 29. hxg6 {[%emt 0:07:21]} Rh8 {[%emt 0:12:59]} 30. Rg1 {[%emt 0:05:18]} Qh4 {[%emt 0:01:20]} 31. Bxe3 {[%emt 0:00:41]} fxe3 {[%emt 0:00:04]} 32. Qxe3 {[%emt 0:00:11]} Nd3 {[%emt 0:02:27]} 33. Bxd3 {[%emt 0:17:18]} Rxf3+ {[%emt 0:00:07]} 34. Qxf3 {[%emt 0:00:31]} exf3 {[%emt 0:00:05]} 35. Rc1 {[%emt 0:00:00]} Qh3+ {[%emt 0:01:14]} 36. Ke1 {[%emt 0:00:00]} f2+ {[%emt 0:02:26]} 37. Kxf2 {[%emt 0:00:00]} Rf8+ {[%emt 0:00:24]} 0-1

[Event "Slovakia Open Piestany-A 2022"]
[Site "Piestany"]
[Date "2022.07.13"]
[Round "3.13"]
[White "Delgerdalai, Bayarjavkhlan"]
[Black "Neugebauer, Martin"]
[Result "0-1"]
[ECO "E14"]
[WhiteElo "2209"]
[BlackElo "2528"]
[Annotator "ChessBase"]
[PlyCount "102"]
[EventDate "2022.07.12"]
[EventType "swiss"]
[EventCountry "SVK"]
[SourceTitle "playchess.com"]
[Source "ChessBase"]
[SourceQuality "1"]
[TimeControl "40/5400+30:1800+30"]

1. d4 {[%emt 0:00:04]} Nf6 {[%emt 0:06:51]} 2. c4 {[%emt 0:00:14]} e6 {[%emt 0:00:25]} 3. Nf3 {[%emt 0:00:34]} d5 {[%emt 0:00:39]} 4. e3 {[%emt 0:00:21]} Be7 {[%emt 0:02:01]} 5. b3 {[%emt 0:00:37]} O-O {[%emt 0:01:38]} 6. Bd3 {[%emt 0:00:31]} b6 {[%emt 0:05:31]} 7. Bb2 {[%emt 0:00:28]} Bb7 {[%emt 0:00:44]} 8. O-O {[%emt 0:00:16]} c5 {[%emt 0:03:12]} 9. Nc3 {[%emt 0:03:44]} Nbd7 {[%emt 0:02:49]} 10. Qe2 {[%emt 0:06:02]} cxd4 {[%emt 0:03:59]} 11. exd4 {[%emt 0:00:46]} Re8 {[%emt 0:05:41]} 12. Rfe1 {[%emt 0:02:28]} a6 {[%emt 0:01:18]} 13. Rad1 {[%emt 0:15:16]} Nf8 {[%emt 0:07:23]} 14. Ne5 {[%emt 0:02:33]} Ng6 {[%emt 0:01:50]} 15. Nxg6 {[%emt 0:21:36]} hxg6 {[%emt 0:01:15]} 16. Qe3 {[%emt 0:12:49]} Rc8 {[%emt 0:04:02]} 17. Ne2 {[%emt 0:02:05]} Bb4 {[%emt 0:05:27]} 18. Rf1 {[%emt 0:01:05]} Bd6 {[%emt 0:03:14]} 19. Qg5 {[%emt 0:03:45]} Bb8 {[%emt 0:03:55]} 20. Ng3 {[%emt 0:03:49]} Qd7 {[%emt 0:11:40]} 21. h4 {[%emt 0:01:30]} Qc6 {[%emt 0:02:08]} 22. Ne2 {[%emt 0:04:34]} Qc7 {[%emt 0:02:49]} 23. f4 {[%emt 0:03:00]} dxc4 {[%emt 0:02:35]} 24. bxc4 {[%emt 0:00:07]} Be4 {[%emt 0:00:39]} 25. c5 {[%emt 0:05:52]} Qb7 {[%emt 0:10:38]} 26. Ba1 {[%emt 0:05:58]} bxc5 {[%emt 0:00:33]} 27. dxc5 {[%emt 0:00:28]} Rxc5 {[%emt 0:00:36]} 28. Qg3 {[%emt 0:00:30]} Bxd3 {[%emt 0:00:50]} 29. Qxd3 {[%emt 0:00:31]} Rd5 {[%emt 0:00:43]} 30. Qf3 {[%emt 0:00:20]} Ba7+ {[%emt 0:02:05]} 31. Kh2 {[%emt 0:00:15]} Qd7 {[%emt 0:04:37]} 32. Nc3 {[%emt 0:01:27]} Rxd1 {[%emt 0:00:17]} 33. Rxd1 {[%emt 0:00:10]} Qc7 {[%emt 0:00:13]} 34. Ne4 {[%emt 0:00:34]} Nd5 {[%emt 0:01:31]} 35. Be5 {[%emt 0:01:35]} Qe7 {[%emt 0:00:01]} 36. Kh3 {[%emt 0:01:24]} f6 {[%emt 0:03:01]} 37. Bd6 {[%emt 0:00:27]} Qd7 {[%emt 0:00:31]} 38. Bc5 {[%emt 0:01:10]} f5 {[%emt 0:00:35]} 39. Nd6 {[%emt 0:00:19]} Bxc5 {[%emt 0:00:40]} 40. Nxe8 {[%emt 0:00:10]} Bf8 {[%emt 0:01:06]} 41. Re1 {[%emt 0:30:39]} Kf7 {[%emt 0:30:41]} 42. h5 {[%emt 0:00:00]} Kxe8 {[%emt 0:00:00]} 43. hxg6 {[%emt 0:00:00]} Bb4 {[%emt 0:00:00]} 44. Re2 {[%emt 0:00:00]} Ke7 {[%emt 0:00:00]} 45. a3 {[%emt 0:00:00]} Bc3 {[%emt 0:00:00]} 46. g3 {[%emt 0:00:00]} Qb5 {[%emt 0:00:00]} 47. Rc2 {[%emt 0:00:00]} Qb1 {[%emt 0:00:00]} 48. Qd3 {[%emt 0:00:00]} Qh1+ {[%emt 0:00:00]} 49. Rh2 {[%emt 0:00:00]} Qe4 {[%emt 0:00:00]} 50. Qd1 {[%emt 0:00:00]} Qe3 {[%emt 0:00:00]} 51. Qf1 {[%emt 0:00:00]} Kf6 {[%emt 0:00:00]} 0-1

[Event "Slovakia Open Piestany-A 2022"]
[Site "Piestany"]
[Date "2022.07.13"]
[Round "3.14"]
[White "Sevcikova, Lucia"]
[Black "Stefansson, Vignir Vatnar"]
[Result "0-1"]
[ECO "D35"]
[WhiteElo "2036"]
[BlackElo "2461"]
[Annotator "ChessBase"]
[PlyCount "108"]
[EventDate "2022.07.12"]
[EventType "swiss"]
[EventCountry "SVK"]
[SourceTitle "playchess.com"]
[Source "ChessBase"]
[SourceQuality "1"]
[TimeControl "40/5400+30:1800+30"]

1. d4 {[%emt 0:02:37]} Nf6 {[%emt 0:01:19]} 2. c4 {[%emt 0:00:05]} e6 {[%emt 0:00:14]} 3. Nc3 {[%emt 0:00:09]} d5 {[%emt 0:00:08]} 4. cxd5 {[%emt 0:00:09]} exd5 {[%emt 0:00:27]} 5. Bg5 {[%emt 0:00:06]} c6 {[%emt 0:00:08]} 6. e3 {[%emt 0:00:08]} Bd6 {[%emt 0:00:11]} 7. Bd3 {[%emt 0:02:25]} O-O {[%emt 0:00:19]} 8. Qc2 {[%emt 0:02:49]} h6 {[%emt 0:00:08]} 9. Bh4 {[%emt 0:00:04]} a5 {[%emt 0:01:01]} 10. Bg3 {[%emt 0:08:08]} Re8 {[%emt 0:02:51]} 11. Nf3 {[%emt 0:02:04]} Bxg3 {[%emt 0:02:20]} 12. hxg3 {[%emt 0:00:07]} Nbd7 {[%emt 0:00:09]} 13. O-O {[%emt 0:06:56]} Ng4 {[%emt 0:02:50]} 14. a3 {[%emt 0:03:22]} Ndf6 {[%emt 0:06:04]} 15. b4 {[%emt 0:03:56]} b5 {[%emt 0:02:32]} 16. Ne2 {[%emt 0:04:13]} Bd7 {[%emt 0:00:47]} 17. Nf4 {[%emt 0:06:58]} g5 {[%emt 0:03:34]} 18. Ne2 {[%emt 0:01:43]} Ne4 {[%emt 0:02:06]} 19. Bxe4 {[%emt 0:02:30]} dxe4 {[%emt 0:00:12]} 20. Nd2 {[%emt 0:00:08]} axb4 {[%emt 0:05:01]} 21. axb4 {[%emt 0:00:37]} Rxa1 {[%emt 0:00:04]} 22. Rxa1 {[%emt 0:00:05]} Qf6 {[%emt 0:00:09]} 23. Rf1 {[%emt 0:03:33]} Qg6 {[%emt 0:00:57]} 24. Ra1 {[%emt 0:01:12]} Qf5 {[%emt 0:02:46]} 25. Rf1 {[%emt 0:01:01]} Qg6 {[%emt 0:05:35]} 26. Ra1 {[%emt 0:00:26]} h5 {[%emt 0:00:17]} 27. Nf1 {[%emt 0:08:09]} Qf5 {[%emt 0:01:12]} 28. Nc3 {[%emt 0:01:17]} Be6 {[%emt 0:05:44]} 29. Nd1 {[%emt 0:11:20]} Bd5 {[%emt 0:04:27]} 30. Nb2 {[%emt 0:08:13]} Kg7 {[%emt 0:02:11]} 31. f3 {[%emt 0:04:56]} Nh6 {[%emt 0:00:38]} 32. f4 {[%emt 0:00:29]} Ng4 {[%emt 0:01:28]} 33. Qe2 {[%emt 0:03:20]} Rh8 {[%emt 0:01:36]} 34. Nh2 {[%emt 0:01:52]} Nf6 {[%emt 0:02:06]} 35. Ra6 {[%emt 0:03:27]} Rh6 {[%emt 0:04:29]} 36. Ra7 {[%emt 0:05:10]} Rg6 {[%emt 0:00:27]} 37. Ra1 {[%emt 0:01:05]} Be6 {[%emt 0:01:27]} 38. Rf1 {[%emt 0:01:56]} Nd5 {[%emt 0:01:41]} 39. Qxh5 {[%emt 0:01:44]} Nxe3 {[%emt 0:01:49]} 40. Rf2 {[%emt 0:01:15]} gxf4 {[%emt 0:02:19]} 41. Qxf5 {[%emt 0:02:05]} Nxf5 {[%emt 0:00:11]} 42. gxf4 {[%emt 0:01:22]} Nxd4 {[%emt 0:00:20]} 43. Nd1 {[%emt 0:00:42]} Rg3 {[%emt 0:00:20]} 44. Nf1 {[%emt 0:00:50]} Rb3 {[%emt 0:00:06]} 45. Rb2 {[%emt 0:00:32]} Rxb2 {[%emt 0:00:15]} 46. Nxb2 {[%emt 0:00:04]} Nc2 {[%emt 0:00:18]} 47. Kf2 {[%emt 0:01:20]} Nxb4 {[%emt 0:00:07]} 48. Ke3 {[%emt 0:00:38]} f5 {[%emt 0:05:48]} 49. Kd4 {[%emt 0:04:22]} Kf6 {[%emt 0:00:09]} 50. Kc5 {[%emt 0:02:49]} Nd5 {[%emt 0:01:06]} 51. Nd1 {[%emt 0:00:49]} Nxf4 {[%emt 0:00:14]} 52. Kxc6 {[%emt 0:00:07]} Nxg2 {[%emt 0:00:49]} 53. Kxb5 {[%emt 0:00:25]} Ke5 {[%emt 0:00:04]} 54. Kb4 {[%emt 0:00:32]} Kd4 {[%emt 0:00:15]} 0-1

[Event "Slovakia Open Piestany-A 2022"]
[Site "Piestany"]
[Date "2022.07.13"]
[Round "3.15"]
[White "Marek, Matyas"]
[Black "Mullick, Raahil"]
[Result "1/2-1/2"]
[ECO "B90"]
[WhiteElo "2354"]
[BlackElo "2237"]
[Annotator "ChessBase"]
[PlyCount "38"]
[EventDate "2022.07.12"]
[EventType "swiss"]
[EventCountry "SVK"]
[SourceTitle "playchess.com"]
[Source "ChessBase"]
[SourceQuality "1"]
[TimeControl "40/5400+30:1800+30"]

1. e4 {[%emt 0:00:07]} c5 {[%emt 0:00:26]} 2. Nf3 {[%emt 0:00:05]} d6 {[%emt 0:00:04]} 3. d4 {[%emt 0:00:03]} cxd4 {[%emt 0:00:05]} 4. Nxd4 {[%emt 0:00:04]} Nf6 {[%emt 0:00:05]} 5. Nc3 {[%emt 0:00:04]} a6 {[%emt 0:00:03]} 6. Bd3 {[%emt 0:00:05]} e5 {[%emt 0:02:18]} 7. Nde2 {[%emt 0:00:19]} Be7 {[%emt 0:00:53]} 8. O-O {[%emt 0:00:06]} Nbd7 {[%emt 0:03:55]} 9. Ng3 {[%emt 0:03:51]} Nc5 {[%emt 0:01:23]} 10. Be2 {[%emt 0:01:46]} Be6 {[%emt 0:07:13]} 11. Be3 {[%emt 0:07:12]} O-O {[%emt 0:03:18]} 12. b4 {[%emt 0:01:36]} Ncd7 {[%emt 0:00:13]} 13. Nd5 {[%emt 0:00:11]} Bxd5 {[%emt 0:05:02]} 14. exd5 {[%emt 0:00:06]} a5 {[%emt 0:00:11]} 15. Rb1 {[%emt 0:27:35]} axb4 {[%emt 0:04:03]} 16. Rxb4 {[%emt 0:00:06]} Rxa2 {[%emt 0:08:34]} 17. Bc4 {[%emt 0:01:24]} Ra5 {[%emt 0:08:39]} 18. Rxb7 {[%emt 0:01:01]} Qc8 {[%emt 0:03:22]} 19. Rb4 {[%emt 0:01:39]} Nc5 {[%emt 0:02:00]} 1/2-1/2

[Event "Slovakia Open Piestany-A 2022"]
[Site "Piestany"]
[Date "2022.07.13"]
[Round "3.16"]
[White "Dixit, Nikhil"]
[Black "Matras, Ondrej"]
[Result "1-0"]
[ECO "C11"]
[WhiteElo "2325"]
[BlackElo "2229"]
[Annotator "ChessBase"]
[PlyCount "107"]
[EventDate "2022.07.12"]
[EventType "swiss"]
[EventCountry "SVK"]
[SourceTitle "playchess.com"]
[Source "ChessBase"]
[SourceQuality "1"]
[TimeControl "40/5400+30:1800+30"]

1. e4 {[%emt 0:00:04]} e6 {[%emt 0:11:19]} 2. Nc3 {[%emt 0:00:27]} d5 {[%emt 0:00:02]} 3. Nf3 {[%emt 0:00:06]} Nf6 {[%emt 0:04:23]} 4. e5 {[%emt 0:00:22]} Nfd7 {[%emt 0:00:04]} 5. d4 {[%emt 0:00:10]} c5 {[%emt 0:00:13]} 6. dxc5 {[%emt 0:00:26]} Bxc5 {[%emt 0:03:57]} 7. Bd3 {[%emt 0:01:31]} Nc6 {[%emt 0:00:29]} 8. Bf4 {[%emt 0:01:00]} a6 {[%emt 0:00:56]} 9. Qe2 {[%emt 0:03:24]} Bb4 {[%emt 0:05:25]} 10. O-O {[%emt 0:01:25]} Nc5 {[%emt 0:00:47]} 11. Bg5 {[%emt 0:10:02]} Qc7 {[%emt 0:01:16]} 12. a3 {[%emt 0:02:08]} Bxc3 {[%emt 0:05:51]} 13. bxc3 {[%emt 0:00:20]} Bd7 {[%emt 0:02:12]} 14. Qe3 {[%emt 0:04:17]} Nxd3 {[%emt 0:12:16]} 15. cxd3 {[%emt 0:00:37]} h6 {[%emt 0:00:30]} 16. Bh4 {[%emt 0:03:22]} O-O {[%emt 0:01:57]} 17. Rfe1 {[%emt 0:12:27]} Rfc8 {[%emt 0:01:01]} 18. h3 {[%emt 0:03:08]} Be8 {[%emt 0:00:50]} 19. Nd4 {[%emt 0:05:09]} Nxd4 {[%emt 0:10:43]} 20. cxd4 {[%emt 0:00:18]} Ba4 {[%emt 0:00:13]} 21. Rab1 {[%emt 0:25:30]} Qd7 {[%emt 0:02:20]} 22. Rb6 {[%emt 0:04:06]} Rc6 {[%emt 0:00:41]} 23. Rxc6 {[%emt 0:00:31]} Bxc6 {[%emt 0:02:14]} 24. Qf4 {[%emt 0:00:24]} Kf8 {[%emt 0:02:03]} 25. Re3 {[%emt 0:01:55]} Rc8 {[%emt 0:01:47]} 26. Rg3 {[%emt 0:05:05]} Qc7 {[%emt 0:16:19]} 27. Bf6 {[%emt 0:05:26]} gxf6 {[%emt 0:00:02]} 28. Qxh6+ {[%emt 0:00:24]} Ke8 {[%emt 0:00:18]} 29. Qxf6 {[%emt 0:00:53]} Rd8 {[%emt 0:00:19]} 30. Rg8+ {[%emt 0:02:04]} Kd7 {[%emt 0:00:02]} 31. Qxf7+ {[%emt 0:00:49]} Kc8 {[%emt 0:00:01]} 32. Qxe6+ {[%emt 0:00:26]} Kb8 {[%emt 0:00:19]} 33. h4 {[%emt 0:02:26]} Ka7 {[%emt 0:00:36]} 34. Rxd8 {[%emt 0:00:39]} Qxd8 {[%emt 0:00:01]} 35. g3 {[%emt 0:02:02]} Qb6 {[%emt 0:00:09]} 36. Qg4 {[%emt 0:01:11]} Qb1+ {[%emt 0:00:02]} 37. Kh2 {[%emt 0:00:09]} Qxd3 {[%emt 0:00:04]} 38. h5 {[%emt 0:00:13]} Ba4 {[%emt 0:02:50]} 39. h6 {[%emt 0:01:12]} Bd1 {[%emt 0:00:37]} 40. Qf4 {[%emt 0:00:42]} Bf3 {[%emt 0:00:12]} 41. Kh3 {[%emt 0:08:41]} Qf1+ {[%emt 0:21:49]} 42. Kh4 {[%emt 0:00:57]} Qh1+ {[%emt 0:02:56]} 43. Kg5 {[%emt 0:00:08]} Qh5+ {[%emt 0:00:14]} 44. Kf6 {[%emt 0:00:08]} Be4 {[%emt 0:00:30]} 45. e6 {[%emt 0:02:13]} Qg6+ {[%emt 0:03:28]} 46. Ke5 {[%emt 0:00:38]} Kb6 {[%emt 0:06:18]} 47. Qf6 {[%emt 0:02:52]} Qh5+ {[%emt 0:01:45]} 48. Kf4 {[%emt 0:04:57]} Kc6 {[%emt 0:00:54]} 49. g4 {[%emt 0:01:08]} Qh1 {[%emt 0:01:50]} 50. Kg5 {[%emt 0:02:31]} Bf3 {[%emt 0:02:13]} 51. e7+ {[%emt 0:05:12]} Kd7 {[%emt 0:00:02]} 52. Qf7 {[%emt 0:02:06]} Qc1+ {[%emt 0:00:32]} 53. Kg6 {[%emt 0:00:24]} Be4+ {[%emt 0:00:27]} 54. Kh5 {[%emt 0:00:18]} 1-0

[Event "Slovakia Open Piestany-A 2022"]
[Site "Piestany"]
[Date "2022.07.13"]
[Round "3.17"]
[White "Tripodi, Enzo"]
[Black "Bhambure, Shantanu"]
[Result "1/2-1/2"]
[ECO "B90"]
[WhiteElo "2141"]
[BlackElo "2320"]
[Annotator "ChessBase"]
[PlyCount "61"]
[EventDate "2022.07.12"]
[EventType "swiss"]
[EventCountry "SVK"]
[SourceTitle "playchess.com"]
[Source "ChessBase"]
[SourceQuality "1"]
[TimeControl "40/5400+30:1800+30"]

1. e4 {[%emt 0:01:41]} c5 {[%emt 0:00:06]} 2. Nf3 {[%emt 0:00:07]} d6 {[%emt 0:00:06]} 3. d4 {[%emt 0:00:03]} cxd4 {[%emt 0:00:04]} 4. Nxd4 {[%emt 0:00:03]} Nf6 {[%emt 0:00:06]} 5. Nc3 {[%emt 0:00:03]} a6 {[%emt 0:00:04]} 6. Be3 {[%emt 0:00:03]} e5 {[%emt 0:00:48]} 7. Nb3 {[%emt 0:00:11]} Be6 {[%emt 0:00:40]} 8. Qd2 {[%emt 0:00:06]} Be7 {[%emt 0:01:59]} 9. O-O-O {[%emt 0:00:06]} Nbd7 {[%emt 0:04:14]} 10. Kb1 {[%emt 0:00:10]} b5 {[%emt 0:02:41]} 11. h3 {[%emt 0:10:23]} Nb6 {[%emt 0:07:19]} 12. f4 {[%emt 0:21:42]} b4 {[%emt 0:18:05]} 13. Qf2 {[%emt 0:02:26]} bxc3 {[%emt 0:14:37]} 14. Bxb6 {[%emt 0:00:23]} Qb8 {[%emt 0:00:47]} 15. Bd3 {[%emt 0:04:51]} O-O {[%emt 0:06:21]} 16. Ba5 {[%emt 0:04:16]} cxb2 {[%emt 0:04:11]} 17. g4 {[%emt 0:00:51]} Qb7 {[%emt 0:08:19]} 18. Rhe1 {[%emt 0:09:12]} exf4 {[%emt 0:02:49]} 19. Qxf4 {[%emt 0:01:33]} Rfc8 {[%emt 0:02:09]} 20. Qf2 {[%emt 0:09:50]} d5 {[%emt 0:05:55]} 21. exd5 {[%emt 0:03:57]} Bxd5 {[%emt 0:03:38]} 22. g5 {[%emt 0:03:34]} Nh5 {[%emt 0:05:18]} 23. Bxh7+ {[%emt 0:02:27]} Kxh7 {[%emt 0:00:50]} 24. Qf5+ {[%emt 0:00:08]} Kg8 {[%emt 0:02:10]} 25. Qxd5 {[%emt 0:00:41]} Qxd5 {[%emt 0:00:24]} 26. Rxd5 {[%emt 0:00:02]} Nf4 {[%emt 0:04:23]} 27. Rf5 {[%emt 0:01:24]} Ne6 {[%emt 0:00:45]} 28. h4 {[%emt 0:04:03]} g6 {[%emt 0:00:55]} 29. Rfe5 {[%emt 0:01:16]} Bf8 {[%emt 0:01:16]} 30. R5e4 {[%emt 0:00:54]} Bg7 {[%emt 0:01:46]} 31. c3 {[%emt 0:02:46]} 1/2-1/2